[Event "II Duchamp Open 2018-U1800"]
[Site "Rio de Janeiro"]
[Date "2018.11.19"]
[Round "4"]
[White "Da Costa, Carlos Henrique Luz"]
[Black "Rial, Antonio Marcos Pino"]
[Result "0-1"]
[ECO "A04"]
[WhiteElo "1536"]
[BlackElo "1712"]
[Annotator "NA RC"]
[PlyCount "142"]
[EventDate "2018.11.14"]
[EventType "swiss"]
[EventCountry "BRA"]
[SourceTitle "playchess.com"]
[Source "ChessBase"]
[SourceQuality "1"]
[TimeControl "5400+30"]

1. Nf3 {[%emt 0:29:51]} c6 {[%emt 0:35:47]} 2. d4 {[%emt 0:00:15]} d6 {[%emt 0:00:13]} 3. b3 {[%emt 0:00:54]} Nf6 {[%emt 0:00:24]} 4. e3 {[%emt 0:01:13]} Bg4 {[%emt 0:00:06]} 5. Be2 {[%emt 0:00:14]} Nbd7 {[%emt 0:00:27]} 6. Nbd2 {[%emt 0:00:15]} e5 {[%emt 0:00:36]} 7. dxe5 {[%emt 0:00:33]} Bxf3 {[%emt 0:00:15]} 8. Nxf3 {[%emt 0:00:10]} Nxe5 {[%emt 0:00:13]} 9. Bb2 {[%emt 0:00:14]} Qc7 {[%emt 0:01:57]} 10. O-O {[%emt 0:01:12]} Be7 {[%emt 0:00:24]} 11. c4 {[%emt 0:00:36]} O-O-O {[%emt 0:01:00]} 12. Qc2 {[%emt 0:00:34]} Kb8 {[%emt 0:01:00]} 13. h3 {[%emt 0:01:04]} Nxf3+ {[%emt 0:03:18]} 14. Bxf3 {[%emt 0:00:06]} g6 {[%emt 0:01:18]} 15. Rfd1 {[%emt 0:01:56]} Rhe8 {[%emt 0:00:25]} 16. b4 {[%emt 0:03:22]} Nd7 {[%emt 0:01:59]} 17. a4 {[%emt 0:07:39]} Bf6 {[%emt 0:03:19]} 18. Bxf6 {[%emt 0:00:24]} Nxf6 {[%emt 0:00:02]} 19. Qb2 {[%emt 0:00:59]} Ne4 {[%emt 0:01:04]} 20. b5 {[%emt 0:02:11]} c5 {[%emt 0:01:45]} 21. a5 {[%emt 0:01:38]} Qe7 {[%emt 0:01:20]} 22. a6 {[%emt 0:03:35]} b6 {[%emt 0:00:15]} 23. Rd5 {[%emt 0:00:20]} Qf6 {[%emt 0:03:34]} 24. Qxf6 {[%emt 0:04:00]} Nxf6 {[%emt 0:00:02]} 25. Rad1 {[%emt 0:00:08]} Nxd5 {[%emt 0:00:07]} 26. Bxd5 {[%emt 0:01:06]} f5 {[%emt 0:01:17]} 27. Kh2 {[%emt 0:01:08]} g5 {[%emt 0:00:16]} 28. Rd2 {[%emt 0:01:30]} f4 {[%emt 0:00:30]} 29. exf4 {[%emt 0:01:36]} gxf4 {[%emt 0:00:02]} 30. Rd3 {[%emt 0:00:47]} Rf8 {[%emt 0:00:08]} 31. Kg1 {[%emt 0:01:09]} Kc7 {[%emt 0:00:08]} 32. Kf1 {[%emt 0:00:38]} Rde8 {[%emt 0:00:03]} 33. Rd2 {[%emt 0:04:33]} Re5 {[%emt 0:00:26]} 34. Re2 {[%emt 0:05:19]} Rfe8 {[%emt 0:00:05]} 35. Bf3 {[%emt 0:00:45]} Rxe2 {[%emt 0:01:11]} 36. Bxe2 {[%emt 0:00:10]} Re5 {[%emt 0:00:43]} 37. Bf3 {[%emt 0:00:28]} Kd7 {[%emt 0:00:03]} 38. Bd5 {[%emt 0:01:14]} Ke7 {[%emt 0:00:01]} 39. Bg8 {[%emt 0:03:20]} Kf6 {[%emt 0:00:45]} 40. Bd5 {[%emt 0:01:30]} Re7 {[%emt 0:00:17]} 41. g3 {[%emt 0:05:06]} fxg3 {[%emt 0:00:09]} 42. fxg3 {[%emt 0:00:19]} Re3 {[%emt 0:00:30]} 43. Kf2 {[%emt 0:00:14]} Ra3 {[%emt 0:00:01]} 44. h4 {[%emt 0:01:44]} Ke5 {[%emt 0:00:02]} 45. g4 {[%emt 0:01:40]} Kf4 {[%emt 0:00:05]} 46. Be6 {[%emt 0:04:41]} Ra2+ {[%emt 0:00:43]} 47. Ke1 {[%emt 0:00:48]} h6 {[%emt 0:00:09]} 48. Kd1 {[%emt 0:00:58]} Ke5 {[%emt 0:00:29]} 49. Bd5 {[%emt 0:01:03]} Rh2 {[%emt 0:00:41]} 50. g5 {[%emt 0:01:02]} hxg5 {[%emt 0:00:05]} 51. hxg5 {[%emt 0:00:32]} Kf5 {[%emt 0:00:03]} 52. Bf3 {[%emt 0:00:50]} Kxg5 {[%emt 0:00:03]} 53. Be2 {[%emt 0:00:12]} Kf4 {[%emt 0:01:01]} 54. Bd3 {[%emt 0:02:02]} Ke3 {[%emt 0:00:07]} 55. Bg6 {[%emt 0:00:51]} Kd4 {[%emt 0:00:34]} 56. Bf7 {[%emt 0:00:33]} Kd3 {[%emt 0:00:14]} 57. Ke1 {[%emt 0:01:06]} Re2+ {[%emt 0:00:16]} 58. Kf1 {[%emt 0:00:21]} Ke3 {[%emt 0:00:02]} 59. Bd5 {[%emt 0:00:25]} Rd2 {[%emt 0:00:02]} 60. Be6 {[%emt 0:00:49]} Kd4 {[%emt 0:00:04]} 61. Ke1 {[%emt 0:02:47]} Rc2 {[%emt 0:00:10]} 62. Kd1 {[%emt 0:01:55]} Rxc4 {[%emt 0:00:02]} 63. Kd2 {[%emt 0:00:49]} d5 {[%emt 0:00:09]} 64. Bf5 {[%emt 0:00:51]} Ra4 {[%emt 0:00:05]} 65. Kc2 {[%emt 0:00:36]} Kc4 {[%emt 0:00:11]} 66. Bd3+ {[%emt 0:00:12]} Kb4 {[%emt 0:00:02]} 67. Kb2 {[%emt 0:01:07]} c4 {[%emt 0:00:12]} 68. Bg6 {[%emt 0:00:48]} d4 {[%emt 0:00:08]} 69. Be8 {[%emt 0:00:58]} d3 {[%emt 0:00:07]} 70. Bc6 {[%emt 0:00:26]} c3+ {[%emt 0:00:02]} 71. Kb1 c2+ 0-1

[Event "II Duchamp Open 2018-U1800"]
[Site "Rio de Janeiro"]
[Date "2018.11.19"]
[Round "4"]
[White "Valente, Fernando Cesar"]
[Black "Mesquita, Arnaldo Leite"]
[Result "0-1"]
[ECO "B01"]
[WhiteElo "1522"]
[BlackElo "1749"]
[Annotator "NA RC"]
[PlyCount "99"]
[EventDate "2018.11.14"]
[EventType "swiss"]
[EventCountry "BRA"]
[SourceTitle "playchess.com"]
[Source "ChessBase"]
[SourceQuality "1"]
[TimeControl "5400+30"]

1. e4 {[%emt 0:29:34]} d5 {[%emt 0:29:57]} 2. exd5 {[%emt 0:00:10]} Nf6 {[%emt 0:00:07]} 3. Nf3 {[%emt 0:00:39]} Nxd5 {[%emt 0:00:08]} 4. c4 {[%emt 0:00:40]} Nf6 {[%emt 0:00:27]} 5. d4 {[%emt 0:00:43]} Bg4 {[%emt 0:00:22]} 6. Be2 {[%emt 0:01:46]} e6 {[%emt 0:00:21]} 7. O-O {[%emt 0:00:49]} Be7 {[%emt 0:00:07]} 8. Nc3 {[%emt 0:00:37]} O-O {[%emt 0:00:31]} 9. h3 {[%emt 0:01:36]} Bh5 {[%emt 0:00:10]} 10. Be3 {[%emt 0:08:10]} c6 {[%emt 0:00:23]} 11. Qd2 {[%emt 0:02:31]} Nbd7 {[%emt 0:00:35]} 12. Rad1 {[%emt 0:00:44]} Bb4 {[%emt 0:01:58]} 13. Qc1 {[%emt 0:05:00]} Qa5 {[%emt 0:00:37]} 14. a3 {[%emt 0:02:28]} Bxc3 {[%emt 0:00:16]} 15. Qxc3 {[%emt 0:04:09]} Qxc3 {[%emt 0:00:08]} 16. bxc3 {[%emt 0:00:01]} Ne4 {[%emt 0:00:07]} 17. Rc1 {[%emt 0:02:51]} f5 {[%emt 0:06:24]} 18. Rfe1 {[%emt 0:04:09]} f4 {[%emt 0:00:46]} 19. Bd2 {[%emt 0:01:47]} Bxf3 {[%emt 0:00:17]} 20. Bxf3 {[%emt 0:01:23]} Nxd2 {[%emt 0:00:09]} 21. Bg4 {[%emt 0:00:31]} Nf6 {[%emt 0:02:19]} 22. Bxe6+ {[%emt 0:00:51]} Kh8 {[%emt 0:00:15]} 23. f3 {[%emt 0:04:40]} Nb3 {[%emt 0:01:57]} 24. Rcd1 {[%emt 0:03:59]} Rad8 {[%emt 0:02:07]} 25. c5 {[%emt 0:02:27]} Nd5 {[%emt 0:01:52]} 26. Re5 {[%emt 0:08:16]} Na5 {[%emt 0:02:35]} 27. Bxd5 {[%emt 0:00:56]} Rxd5 {[%emt 0:01:58]} 28. Re7 {[%emt 0:00:36]} Rfd8 {[%emt 0:02:41]} 29. Rde1 {[%emt 0:00:46]} Kg8 {[%emt 0:00:44]} 30. Rc7 {[%emt 0:00:54]} R5d7 {[%emt 0:01:32]} 31. Rxd7 {[%emt 0:00:49]} Rxd7 {[%emt 0:00:14]} 32. Re4 {[%emt 0:00:02]} g5 {[%emt 0:00:41]} 33. h4 {[%emt 0:00:01]} h6 {[%emt 0:00:36]} 34. hxg5 {[%emt 0:02:48]} hxg5 {[%emt 0:00:13]} 35. Re5 {[%emt 0:00:06]} Rg7 {[%emt 0:00:11]} 36. d5 {[%emt 0:02:08]} cxd5 {[%emt 0:00:36]} 37. Rxd5 {[%emt 0:00:24]} Nc6 {[%emt 0:00:16]} 38. Rf5 {[%emt 0:01:52]} Ne7 {[%emt 0:02:10]} 39. Re5 {[%emt 0:00:29]} Kf7 {[%emt 0:00:19]} 40. Kf2 {[%emt 0:01:42]} Kf6 {[%emt 0:00:06]} 41. Re4 {[%emt 0:01:33]} Nc6 {[%emt 0:00:26]} 42. Re8 {[%emt 0:00:46]} Ne5 {[%emt 0:03:06]} 43. Rd8 {[%emt 0:01:55]} Rd7 {[%emt 0:00:33]} 44. Rf8+ {[%emt 0:00:58]} Nf7 {[%emt 0:01:22]} 45. Ke2 {[%emt 0:00:31]} Ke5 {[%emt 0:00:32]} 46. Ra8 {[%emt 0:00:56]} a6 {[%emt 0:00:28]} 47. Ra7 {[%emt 0:00:19]} Kd5 {[%emt 0:00:20]} 48. Ra8 {[%emt 0:00:47]} Kxc5 {[%emt 0:00:12]} 49. Rc8+ {[%emt 0:00:23]} Kb5 {[%emt 0:00:24]} 50. Rc4 0-1

[Event "II Duchamp Open 2018-U1800"]
[Site "Rio de Janeiro"]
[Date "2018.11.20"]
[Round "5"]
[White "Cabrera Tabeira, Nelson Fabian"]
[Black "Da Costa, Carlos Henrique Luz"]
[Result "0-1"]
[ECO "A40"]
[WhiteElo "1752"]
[BlackElo "1536"]
[Annotator "NA RC"]
[PlyCount "55"]
[EventDate "2018.11.14"]
[EventType "swiss"]
[EventCountry "BRA"]
[SourceTitle "playchess.com"]
[Source "ChessBase"]
[SourceQuality "1"]
[TimeControl "5400+30"]

1. d4 {[%emt 0:29:34]} c6 {[%emt 0:29:48]} 2. Bf4 {[%emt 0:00:29]} d5 {[%emt 0:00:32]} 3. e3 {[%emt 0:01:01]} Nf6 {[%emt 0:01:56]} 4. c3 {[%emt 0:00:15]} Bf5 {[%emt 0:02:22]} 5. Nd2 {[%emt 0:01:24]} e6 {[%emt 0:00:36]} 6. Ngf3 {[%emt 0:00:51]} h6 {[%emt 0:00:14]} 7. h3 {[%emt 0:01:34]} Bd6 {[%emt 0:00:11]} 8. Ne5 {[%emt 0:01:24]} Qc7 {[%emt 0:00:42]} 9. Bh2 {[%emt 0:03:02]} Nbd7 {[%emt 0:00:17]} 10. f4 {[%emt 0:00:49]} Ne4 {[%emt 0:00:44]} 11. Be2 {[%emt 0:03:39]} Ndf6 {[%emt 0:00:59]} 12. O-O {[%emt 0:02:47]} Nxd2 {[%emt 0:02:57]} 13. Qxd2 {[%emt 0:01:05]} O-O {[%emt 0:02:24]} 14. c4 {[%emt 0:04:20]} Ne4 {[%emt 0:08:38]} 15. Qd1 {[%emt 0:03:04]} Bb4 {[%emt 0:01:29]} 16. Nf3 {[%emt 0:04:07]} Be7 {[%emt 0:03:40]} 17. Qc1 {[%emt 0:18:16]} Rac8 {[%emt 0:01:15]} 18. c5 {[%emt 0:03:02]} a5 {[%emt 0:01:49]} 19. a3 {[%emt 0:01:08]} Ra8 {[%emt 0:00:14]} 20. b4 {[%emt 0:02:07]} axb4 {[%emt 0:03:20]} 21. axb4 {[%emt 0:01:52]} b5 {[%emt 0:01:58]} 22. Qb2 {[%emt 0:03:32]} Qb7 {[%emt 0:00:24]} 23. Rxa8 {[%emt 0:06:11]} Rxa8 {[%emt 0:00:05]} 24. Ra1 {[%emt 0:00:17]} Bd8 {[%emt 0:03:43]} 25. g4 {[%emt 0:03:24]} Bh7 {[%emt 0:01:59]} 26. Bd3 {[%emt 0:01:57]} f5 {[%emt 0:08:23]} 27. Bxe4 {[%emt 0:00:42]} fxe4 28. Ne5 0-1

[Event "II Duchamp Open 2018-U1800"]
[Site "Rio de Janeiro"]
[Date "2018.11.20"]
[Round "5"]
[White "Rial, Antonio Marcos Pino"]
[Black "Souza, Neurismar Da Rocha"]
[Result "0-1"]
[ECO "D05"]
[WhiteElo "1712"]
[BlackElo "1551"]
[Annotator "NA RC"]
[PlyCount "128"]
[EventDate "2018.11.14"]
[EventType "swiss"]
[EventCountry "BRA"]
[SourceTitle "playchess.com"]
[Source "ChessBase"]
[SourceQuality "1"]
[TimeControl "5400+30"]

1. d4 {[%emt 0:29:32]} d5 {[%emt 0:29:45]} 2. Nf3 {[%emt 0:00:07]} e6 {[%emt 0:00:21]} 3. e3 {[%emt 0:00:02]} Nf6 {[%emt 0:00:44]} 4. Bd3 {[%emt 0:00:09]} b6 {[%emt 0:00:42]} 5. Nbd2 {[%emt 0:00:10]} Bb7 {[%emt 0:01:49]} 6. O-O {[%emt 0:00:27]} Nbd7 {[%emt 0:00:25]} 7. b3 {[%emt 0:00:33]} Be7 {[%emt 0:01:23]} 8. Bb2 {[%emt 0:00:12]} O-O {[%emt 0:00:41]} 9. Ne5 {[%emt 0:00:14]} Nxe5 {[%emt 0:02:24]} 10. dxe5 {[%emt 0:00:08]} Nd7 {[%emt 0:00:38]} 11. Qh5 {[%emt 0:00:45]} g6 {[%emt 0:01:23]} 12. Qh3 {[%emt 0:00:03]} Nc5 {[%emt 0:03:48]} 13. f4 {[%emt 0:01:36]} Nxd3 {[%emt 0:00:54]} 14. cxd3 {[%emt 0:00:06]} Ba6 {[%emt 0:05:35]} 15. g4 {[%emt 0:09:39]} Bxd3 {[%emt 0:07:05]} 16. Rf2 {[%emt 0:00:23]} f5 {[%emt 0:02:03]} 17. gxf5 {[%emt 0:04:21]} Bxf5 {[%emt 0:01:40]} 18. Qg2 {[%emt 0:02:30]} Rf7 {[%emt 0:03:02]} 19. Kh1 {[%emt 0:03:18]} Bb4 {[%emt 0:06:02]} 20. e4 {[%emt 0:01:35]} Bxd2 {[%emt 0:04:38]} 21. exf5 {[%emt 0:00:26]} Be3 {[%emt 0:02:57]} 22. fxe6 {[%emt 0:00:44]} Rf5 {[%emt 0:04:08]} 23. Rf3 {[%emt 0:05:58]} Bc5 {[%emt 0:02:00]} 24. Rd1 {[%emt 0:04:41]} c6 {[%emt 0:00:20]} 25. Rg3 {[%emt 0:02:14]} Qe8 {[%emt 0:02:04]} 26. a3 {[%emt 0:01:36]} Qxe6 {[%emt 0:00:23]} 27. b4 {[%emt 0:01:55]} Be7 {[%emt 0:01:36]} 28. Bc1 {[%emt 0:03:52]} Rd8 {[%emt 0:01:46]} 29. Rg1 {[%emt 0:00:49]} Kg7 {[%emt 0:01:05]} 30. Qc2 {[%emt 0:01:12]} c5 {[%emt 0:00:52]} 31. bxc5 {[%emt 0:00:23]} bxc5 {[%emt 0:01:20]} 32. Rb3 {[%emt 0:00:18]} d4 {[%emt 0:01:15]} 33. Rb7 {[%emt 0:00:33]} Qd5+ {[%emt 0:00:26]} 34. Qg2 {[%emt 0:00:08]} Qxg2+ {[%emt 0:02:37]} 35. Rxg2 {[%emt 0:00:02]} Kf8 {[%emt 0:00:52]} 36. Kg1 {[%emt 0:11:17]} c4 {[%emt 0:01:52]} 37. Kf1 {[%emt 0:00:30]} c3 {[%emt 0:01:54]} 38. Ke1 {[%emt 0:03:06]} d3 {[%emt 0:01:24]} 39. Kd1 {[%emt 0:00:06]} d2 {[%emt 0:00:26]} 40. Bxd2 {[%emt 0:00:33]} Rxd2+ {[%emt 0:00:59]} 41. Rxd2 {[%emt 0:00:02]} cxd2 {[%emt 0:00:20]} 42. e6 {[%emt 0:00:47]} Rxf4 {[%emt 0:00:40]} 43. Kxd2 {[%emt 0:00:42]} Rf2+ {[%emt 0:00:48]} 44. Kd3 {[%emt 0:00:32]} Rf3+ {[%emt 0:00:16]} 45. Ke4 {[%emt 0:00:17]} Rxa3 {[%emt 0:00:27]} 46. Ke5 {[%emt 0:00:02]} Ra5+ {[%emt 0:00:50]} 47. Ke4 {[%emt 0:00:04]} h5 {[%emt 0:00:39]} 48. Kd4 {[%emt 0:01:24]} g5 {[%emt 0:00:21]} 49. Ke4 {[%emt 0:00:12]} g4 {[%emt 0:00:31]} 50. Kd4 {[%emt 0:00:14]} h4 {[%emt 0:00:25]} 51. Rb8+ {[%emt 0:00:17]} Kg7 {[%emt 0:00:25]} 52. Re8 {[%emt 0:00:02]} Kf6 {[%emt 0:00:19]} 53. Rh8 {[%emt 0:00:17]} Kxe6 {[%emt 0:00:18]} 54. Rh6+ {[%emt 0:00:41]} Bf6+ {[%emt 0:00:25]} 55. Kd3 {[%emt 0:00:01]} Ra2 {[%emt 0:00:29]} 56. Rh7 {[%emt 0:00:41]} Rxh2 {[%emt 0:00:31]} 57. Rxa7 {[%emt 0:00:08]} g3 {[%emt 0:00:20]} 58. Ra6+ {[%emt 0:00:26]} Kf5 {[%emt 0:00:20]} 59. Ra5+ {[%emt 0:00:31]} Be5 {[%emt 0:00:20]} 60. Ke3 {[%emt 0:00:29]} h3 {[%emt 0:01:01]} 61. Kf3 {[%emt 0:00:19]} Rf2+ {[%emt 0:00:31]} 62. Ke3 {[%emt 0:00:06]} h2 {[%emt 0:00:21]} 63. Ra8 {[%emt 0:00:21]} h1=Q {[%emt 0:00:23]} 64. Rf8+ {[%emt 0:00:12]} Bf6 {[%emt 0:00:17] Kd4 Ke5+} 0-1

[Event "II Duchamp Open 2018-U1800"]
[Site "Rio de Janeiro"]
[Date "2018.11.20"]
[Round "5"]
[White "Rovedo, Salomao"]
[Black "Da Silva, Joao Carlos Orguim"]
[Result "0-1"]
[ECO "A05"]
[WhiteElo "1642"]
[BlackElo "1751"]
[Annotator "NA RC"]
[PlyCount "74"]
[EventDate "2018.11.14"]
[EventType "swiss"]
[EventCountry "BRA"]
[SourceTitle "playchess.com"]
[Source "ChessBase"]
[SourceQuality "1"]
[TimeControl "5400+30"]

1. Nf3 {[%emt 0:29:41]} Nf6 {[%emt 0:30:08]} 2. g3 {[%emt 0:00:35]} g6 {[%emt 0:00:18]} 3. Bg2 {[%emt 0:00:59]} Bg7 {[%emt 0:00:01]} 4. O-O {[%emt 0:00:30]} O-O {[%emt 0:00:07]} 5. d3 {[%emt 0:00:56]} d5 {[%emt 0:00:36]} 6. c3 {[%emt 0:00:56]} c5 {[%emt 0:00:36]} 7. Be3 {[%emt 0:07:00]} b6 {[%emt 0:00:17]} 8. Qc1 {[%emt 0:01:01]} Bb7 {[%emt 0:02:22]} 9. Bh6 {[%emt 0:03:47]} Nbd7 {[%emt 0:00:33]} 10. Bxg7 {[%emt 0:00:18]} Kxg7 {[%emt 0:00:02]} 11. Na3 {[%emt 0:02:17]} e5 {[%emt 0:00:29]} 12. Rd1 {[%emt 0:00:38]} Qe7 {[%emt 0:01:07]} 13. e3 {[%emt 0:04:54]} Rac8 {[%emt 0:02:24]} 14. c4 {[%emt 0:04:25]} d4 {[%emt 0:00:33]} 15. Re1 {[%emt 0:04:47]} dxe3 {[%emt 0:03:40]} 16. Qxe3 {[%emt 0:06:10]} Ng4 {[%emt 0:07:59]} 17. Qe2 {[%emt 0:01:22]} Rfe8 {[%emt 0:04:59]} 18. Nc2 {[%emt 0:02:22]} f6 {[%emt 0:05:49]} 19. Nh4 {[%emt 0:05:44]} Bxg2 {[%emt 0:16:40]} 20. Qxg4 {[%emt 0:00:21]} Qf7 {[%emt 0:06:31]} 21. Nf5+ {[%emt 0:01:16]} Kf8 {[%emt 0:04:18]} 22. Nd6 {[%emt 0:00:31]} f5 {[%emt 0:01:48]} 23. Qg5 {[%emt 0:02:13]} Qe6 {[%emt 0:03:14]} 24. Nxe8 {[%emt 0:01:21]} Qc6 {[%emt 0:00:36]} 25. Ne3 {[%emt 0:03:08]} Bf3 {[%emt 0:00:53]} 26. Nd5 {[%emt 0:01:27]} Rxe8 {[%emt 0:00:45]} 27. Re3 {[%emt 0:01:55]} Bxd5 {[%emt 0:00:09]} 28. cxd5 {[%emt 0:00:14]} Qxd5 {[%emt 0:00:02]} 29. Rae1 {[%emt 0:00:39]} Qxa2 {[%emt 0:01:14]} 30. f4 {[%emt 0:01:32]} Qxb2 {[%emt 0:00:01]} 31. fxe5 {[%emt 0:00:39]} Qd4 {[%emt 0:01:52]} 32. e6 {[%emt 0:03:49]} Rxe6 {[%emt 0:00:50]} 33. Kf1 {[%emt 0:01:44]} Rxe3 {[%emt 0:00:29]} 34. Rxe3 {[%emt 0:00:04]} Nf6 {[%emt 0:02:07]} 35. Ke2 {[%emt 0:06:13]} Qg4+ {[%emt 0:00:21]} 36. Qxg4 {[%emt 0:00:12]} Nxg4 {[%emt 0:00:01]} 37. d4 {[%emt 0:01:05]} Nxe3 {[%emt 0:00:25]} 0-1

[Event "II Duchamp Open 2018-U1800"]
[Site "Rio de Janeiro"]
[Date "2018.11.20"]
[Round "5"]
[White "Agrasot, Antonio"]
[Black "De Oliveira, Joao Eudes"]
[Result "1/2-1/2"]
[ECO "B50"]
[WhiteElo "1562"]
[BlackElo "1726"]
[Annotator "NA RC"]
[PlyCount "92"]
[EventDate "2018.11.14"]
[EventType "swiss"]
[EventCountry "BRA"]
[SourceTitle "playchess.com"]
[Source "ChessBase"]
[SourceQuality "1"]
[TimeControl "5400+30"]

1. e4 {[%emt 0:29:32]} c5 {[%emt 0:33:56]} 2. Nf3 {[%emt 0:00:13]} d6 {[%emt 0:00:24]} 3. h3 {[%emt 0:00:52]} Nf6 {[%emt 0:01:59]} 4. Nc3 {[%emt 0:00:17]} a6 {[%emt 0:00:31]} 5. Be2 {[%emt 0:01:02]} e5 {[%emt 0:01:13]} 6. d3 {[%emt 0:01:38]} Be7 {[%emt 0:00:09]} 7. O-O {[%emt 0:00:09]} O-O {[%emt 0:00:28]} 8. Nh2 {[%emt 0:01:01]} Be6 {[%emt 0:00:36]} 9. f4 {[%emt 0:03:54]} exf4 {[%emt 0:00:12]} 10. Bxf4 {[%emt 0:00:53]} Qc7 {[%emt 0:00:51]} 11. Bf3 {[%emt 0:07:10]} Nc6 {[%emt 0:00:38]} 12. Nd5 {[%emt 0:01:28]} Bxd5 {[%emt 0:00:59]} 13. exd5 {[%emt 0:00:10]} Nd4 {[%emt 0:01:27]} 14. c4 {[%emt 0:00:23]} Rfe8 {[%emt 0:01:31]} 15. Be4 {[%emt 0:07:23]} Bf8 {[%emt 0:00:43]} 16. Bf3 {[%emt 0:01:15]} g6 {[%emt 0:03:06]} 17. Bd2 {[%emt 0:03:35]} Bg7 {[%emt 0:01:49]} 18. Bc3 {[%emt 0:00:35]} Nf5 {[%emt 0:06:44]} 19. Re1 {[%emt 0:06:55]} Re7 {[%emt 0:05:08]} 20. Rxe7 {[%emt 0:00:52]} Qxe7 {[%emt 0:00:26]} 21. Nf1 {[%emt 0:05:02]} Re8 {[%emt 0:00:32]} 22. Qe1 {[%emt 0:03:56]} Qxe1 {[%emt 0:01:39]} 23. Rxe1 {[%emt 0:00:09]} Rxe1 {[%emt 0:00:32]} 24. Bxe1 {[%emt 0:00:07]} Kf8 {[%emt 0:03:17]} 25. Bd1 {[%emt 0:01:31]} Ke7 {[%emt 0:00:58]} 26. Bf2 {[%emt 0:02:22]} Nd7 {[%emt 0:00:16]} 27. b3 {[%emt 0:00:27]} Bd4 {[%emt 0:02:46]} 28. Bxd4 {[%emt 0:03:19]} Nxd4 {[%emt 0:00:19]} 29. Kf2 {[%emt 0:00:07]} Ne5 {[%emt 0:01:48]} 30. Ke3 {[%emt 0:03:15]} f5 {[%emt 0:03:24]} 31. Nh2 {[%emt 0:03:43]} g5 {[%emt 0:00:38]} 32. Nf3 {[%emt 0:03:31]} Nexf3 {[%emt 0:01:13]} 33. gxf3 {[%emt 0:00:27]} Kf6 {[%emt 0:01:25]} 34. f4 {[%emt 0:01:01]} h6 {[%emt 0:00:26]} 35. h4 {[%emt 0:04:11]} g4 {[%emt 0:02:57]} 36. h5 {[%emt 0:00:14]} b6 {[%emt 0:01:44]} 37. Kf2 {[%emt 0:00:45]} b5 {[%emt 0:00:33]} 38. Kg3 {[%emt 0:00:34]} a5 {[%emt 0:00:41]} 39. Kf2 {[%emt 0:00:24]} Ke7 {[%emt 0:00:36]} 40. Kg3 {[%emt 0:00:13]} Kd7 {[%emt 0:00:31]} 41. a3 {[%emt 0:02:14]} Ke7 {[%emt 0:00:43]} 42. Kf2 {[%emt 0:01:22]} Kf6 {[%emt 0:00:46]} 43. Kg3 {[%emt 0:00:13]} a4 {[%emt 0:00:49]} 44. cxb5 {[%emt 0:02:37]} axb3 {[%emt 0:00:16]} 45. Bxb3 {[%emt 0:00:05]} Nxb3 {[%emt 0:00:03]} 46. b6 {[%emt 0:00:25]} Na5 {[%emt 0:00:24]} 1/2-1/2